{"text_format":"3","workbook":"xlsx","n_sheets":1,"sheets":["Výkaz zisků a ztrát"],"not_rendered":{"defined_names":2},"read":"whole","date_system":"1900"}

{"sheet":"Výkaz zisků a ztrát","index":0,"n_rows":60,"n_cols":10,"rows_kept":60,"merged":[[9,1,9,9],[16,1,16,9],[24,1,24,9],[38,1,38,9],[43,1,43,9],[56,1,56,9]]}
[null,"Výkaz zisků a ztrát"]
[]
[{"$nulls":3},"PŘEDCHOZÍ OBDOBÍ ","ROZPOČET","SOUČASNÉ OBDOBÍ",null,"SOUČASNÉ OBDOBÍ –\n% Z PRODEJE ","ZMĚNA VŮČI\nPŘEDCHOZÍMU OBDOBÍ V % ","ZMĚNA VŮČI\nROZPOČTU V % "]
[null,"Výnosy z prodeje"]
[null,"Výrobek/Služba 1",null,40,50,45,null,{"$f":"IFERROR(VýnosyZProdeje[[#This Row],[Současné období]]/SUBTOTAL(109,VýnosyZProdeje[Současné období]),0)","v":{"v":1,"d":"100.0%"}},{"$f":"IFERROR(VýnosyZProdeje[[#This Row],[Současné období]]/VýnosyZProdeje[[#This Row],[Předchozí období]]-1,0)","v":{"v":0.125,"d":"12.5%"}},{"$f":"IFERROR(VýnosyZProdeje[[#This Row],[Současné období]]/VýnosyZProdeje[[#This Row],[Rozpočet]]-1,0)","v":{"v":-0.09999999999999998,"d":"-10.0%"}}]
[null,"Výrobek/Služba 2",{"$nulls":5},{"$f":"IFERROR(VýnosyZProdeje[[#This Row],[Současné období]]/SUBTOTAL(109,VýnosyZProdeje[Současné období]),0)","v":0},{"$f":"IFERROR(VýnosyZProdeje[[#This Row],[Současné období]]/VýnosyZProdeje[[#This Row],[Předchozí období]]-1,0)","v":0},{"$f":"IFERROR(VýnosyZProdeje[[#This Row],[Současné období]]/VýnosyZProdeje[[#This Row],[Rozpočet]]-1,0)","v":0}]
[null,"Výrobek/Služba 3",{"$nulls":5},{"$f":"IFERROR(VýnosyZProdeje[[#This Row],[Současné období]]/SUBTOTAL(109,VýnosyZProdeje[Současné období]),0)","v":0},{"$f":"IFERROR(VýnosyZProdeje[[#This Row],[Současné období]]/VýnosyZProdeje[[#This Row],[Předchozí období]]-1,0)","v":0},{"$f":"IFERROR(VýnosyZProdeje[[#This Row],[Současné období]]/VýnosyZProdeje[[#This Row],[Rozpočet]]-1,0)","v":0}]
[null,"Výrobek/Služba 4",{"$nulls":5},{"$f":"IFERROR(VýnosyZProdeje[[#This Row],[Současné období]]/SUBTOTAL(109,VýnosyZProdeje[Současné období]),0)","v":0},{"$f":"IFERROR(VýnosyZProdeje[[#This Row],[Současné období]]/VýnosyZProdeje[[#This Row],[Předchozí období]]-1,0)","v":0},{"$f":"IFERROR(VýnosyZProdeje[[#This Row],[Současné období]]/VýnosyZProdeje[[#This Row],[Rozpočet]]-1,0)","v":0}]
[null,"Celkem",null,{"$f":"SUBTOTAL(109,VýnosyZProdeje[Předchozí období])","v":40},{"$f":"SUBTOTAL(109,VýnosyZProdeje[Rozpočet])","v":50},{"$f":"SUBTOTAL(109,VýnosyZProdeje[Současné období])","v":45},null,{"$f":"IFERROR(VýnosyZProdeje[[#Totals],[Současné období]]/VýnosyZProdeje[[#Totals],[Současné období]],0)","v":{"v":1,"d":"100.0%"}},{"$f":"IFERROR(VýnosyZProdeje[[#Totals],[Současné období]]/VýnosyZProdeje[[#Totals],[Předchozí období]]-1,0)","v":{"v":0.125,"d":"12.5%"}},{"$f":"IFERROR(VýnosyZProdeje[[#Totals],[Současné období]]/VýnosyZProdeje[[#Totals],[Rozpočet]]-1,0)","v":{"v":-0.09999999999999998,"d":"-10.0%"}}]
[]
[null,"Náklady na prodej"]
[null,"Výrobek/Služba 1",null,null,2,3,null,{"$f":"IFERROR(NákladyNaProdej[[#This Row],[Současné období]]/SUBTOTAL(109,VýnosyZProdeje[Současné období]),0)","v":{"v":0.06666666666666667,"d":"6.7%"}},{"$f":"IFERROR(NákladyNaProdej[[#This Row],[Současné období]]/NákladyNaProdej[[#This Row],[Předchozí období]]-1,0)","v":0},{"$f":"IFERROR(NákladyNaProdej[[#This Row],[Současné období]]/NákladyNaProdej[[#This Row],[Rozpočet]]-1,0)","v":{"v":0.5,"d":"50.0%"}}]
[null,"Výrobek/Služba 2",null,null,5,3,null,{"$f":"IFERROR(NákladyNaProdej[[#This Row],[Současné období]]/SUBTOTAL(109,VýnosyZProdeje[Současné období]),0)","v":{"v":0.06666666666666667,"d":"6.7%"}},{"$f":"IFERROR(NákladyNaProdej[[#This Row],[Současné období]]/NákladyNaProdej[[#This Row],[Předchozí období]]-1,0)","v":0},{"$f":"IFERROR(NákladyNaProdej[[#This Row],[Současné období]]/NákladyNaProdej[[#This Row],[Rozpočet]]-1,0)","v":{"v":-0.4,"d":"-40.0%"}}]
[null,"Výrobek/Služba 3",{"$nulls":3},1,null,{"$f":"IFERROR(NákladyNaProdej[[#This Row],[Současné období]]/SUBTOTAL(109,VýnosyZProdeje[Současné období]),0)","v":{"v":0.022222222222222223,"d":"2.2%"}},{"$f":"IFERROR(NákladyNaProdej[[#This Row],[Současné období]]/NákladyNaProdej[[#This Row],[Předchozí období]]-1,0)","v":0},{"$f":"IFERROR(NákladyNaProdej[[#This Row],[Současné období]]/NákladyNaProdej[[#This Row],[Rozpočet]]-1,0)","v":0}]
[null,"Výrobek/Služba 4",{"$nulls":5},{"$f":"IFERROR(NákladyNaProdej[[#This Row],[Současné období]]/SUBTOTAL(109,VýnosyZProdeje[Současné období]),0)","v":0},{"$f":"IFERROR(NákladyNaProdej[[#This Row],[Současné období]]/NákladyNaProdej[[#This Row],[Předchozí období]]-1,0)","v":0},{"$f":"IFERROR(NákladyNaProdej[[#This Row],[Současné období]]/NákladyNaProdej[[#This Row],[Rozpočet]]-1,0)","v":0}]
[null,"Celkem",null,{"$f":"SUBTOTAL(109,NákladyNaProdej[Předchozí období])","v":0},{"$f":"SUBTOTAL(109,NákladyNaProdej[Rozpočet])","v":7},{"$f":"SUBTOTAL(109,NákladyNaProdej[Současné období])","v":7},null,{"$f":"IFERROR(NákladyNaProdej[[#Totals],[Současné období]]/SUBTOTAL(109,VýnosyZProdeje[Současné období]),0)","v":{"v":0.15555555555555556,"d":"15.6%"}},{"$f":"IFERROR(NákladyNaProdej[[#Totals],[Současné období]]/NákladyNaProdej[[#Totals],[Předchozí období]]-1,0)","v":0},{"$f":"IFERROR(NákladyNaProdej[[#Totals],[Současné období]]/NákladyNaProdej[[#Totals],[Rozpočet]]-1,0)","v":0}]
[]
[null,"Hrubý zisk",null,{"$f":"SUM(VýnosyZProdeje[Předchozí období])-SUM(NákladyNaProdej[Předchozí období])","v":40},{"$f":"SUM(VýnosyZProdeje[Rozpočet])-SUM(NákladyNaProdej[Rozpočet])","v":43},{"$f":"SUM(VýnosyZProdeje[Současné období])-SUM(NákladyNaProdej[Současné období])","v":38},null,{"$f":"IFERROR(F18/SUBTOTAL(109,VýnosyZProdeje[Současné období]),0)","v":{"v":0.8444444444444444,"d":"84.4%"}},{"$f":"IFERROR(F18/D18-1,0)","v":{"v":-0.050000000000000044,"d":"-5.0%"}},{"$f":"IFERROR(F18/E18-1,0)","v":{"v":-0.11627906976744184,"d":"-11.6%"}}]
[]
[null,"Provozní výdaje: prodej a marketing"]
[null,"Reklama",null,null,22,19,null,{"$f":"IFERROR(ProdejAMarketing[[#This Row],[Současné období]]/SUBTOTAL(109,VýnosyZProdeje[Současné období]),0)","v":{"v":0.4222222222222222,"d":"42.2%"}},{"$f":"IFERROR(ProdejAMarketing[[#This Row],[Současné období]]/ProdejAMarketing[[#This Row],[Předchozí období]]-1,0)","v":0},{"$f":"IFERROR(ProdejAMarketing[[#This Row],[Současné období]]/ProdejAMarketing[[#This Row],[Rozpočet]]-1,0)","v":{"v":-0.13636363636363635,"d":"-13.6%"}}]
[null,"Přímý marketing",{"$nulls":5},{"$f":"IFERROR(ProdejAMarketing[[#This Row],[Současné období]]/SUBTOTAL(109,VýnosyZProdeje[Současné období]),0)","v":0},{"$f":"IFERROR(ProdejAMarketing[[#This Row],[Současné období]]/ProdejAMarketing[[#This Row],[Předchozí období]]-1,0)","v":0},{"$f":"IFERROR(ProdejAMarketing[[#This Row],[Současné období]]/ProdejAMarketing[[#This Row],[Rozpočet]]-1,0)","v":0}]
[null,"Jiné výdaje (upřesnit)",{"$nulls":5},{"$f":"IFERROR(ProdejAMarketing[[#This Row],[Současné období]]/SUBTOTAL(109,VýnosyZProdeje[Současné období]),0)","v":0},{"$f":"IFERROR(ProdejAMarketing[[#This Row],[Současné období]]/ProdejAMarketing[[#This Row],[Předchozí období]]-1,0)","v":0},{"$f":"IFERROR(ProdejAMarketing[[#This Row],[Současné období]]/ProdejAMarketing[[#This Row],[Rozpočet]]-1,0)","v":0}]
[null,"Celkem",null,{"$f":"SUBTOTAL(109,ProdejAMarketing[Předchozí období])","v":0},{"$f":"SUBTOTAL(109,ProdejAMarketing[Rozpočet])","v":22},{"$f":"SUBTOTAL(109,ProdejAMarketing[Současné období])","v":19},null,{"$f":"IFERROR(ProdejAMarketing[[#Totals],[Současné období]]/SUBTOTAL(109,VýnosyZProdeje[Současné období]),0)","v":{"v":0.4222222222222222,"d":"42.2%"}},{"$f":"IFERROR(ProdejAMarketing[[#Totals],[Současné období]]/ProdejAMarketing[[#Totals],[Předchozí období]]-1,0)","v":0},{"$f":"IFERROR(ProdejAMarketing[[#Totals],[Současné období]]/ProdejAMarketing[[#Totals],[Rozpočet]]-1,0)","v":{"v":-0.13636363636363635,"d":"-13.6%"}}]
[]
[null,"Provozní výdaje: obecné a administrativa"]
[null,"Mzdy a platy",null,null,56,51,null,{"$f":"IFERROR(ObecnéAAdministrativa[[#This Row],[Současné období]]/SUBTOTAL(109,VýnosyZProdeje[Současné období]),0)","v":{"v":1.1333333333333333,"d":"113.3%"}},{"$f":"IFERROR(ObecnéAAdministrativa[[#This Row],[Současné období]]/ObecnéAAdministrativa[[#This Row],[Předchozí období]]-1,0)","v":0},{"$f":"IFERROR(ObecnéAAdministrativa[[#This Row],[Současné období]]/ObecnéAAdministrativa[[#This Row],[Rozpočet]]-1,0)","v":{"v":-0.0892857142857143,"d":"-8.9%"}}]
[null,"Externí služby",{"$nulls":5},{"$f":"IFERROR(ObecnéAAdministrativa[[#This Row],[Současné období]]/SUBTOTAL(109,VýnosyZProdeje[Současné období]),0)","v":0},{"$f":"IFERROR(ObecnéAAdministrativa[[#This Row],[Současné období]]/ObecnéAAdministrativa[[#This Row],[Předchozí období]]-1,0)","v":0},{"$f":"IFERROR(ObecnéAAdministrativa[[#This Row],[Současné období]]/ObecnéAAdministrativa[[#This Row],[Rozpočet]]-1,0)","v":0}]
[null,"Zásoby",{"$nulls":5},{"$f":"IFERROR(ObecnéAAdministrativa[[#This Row],[Současné období]]/SUBTOTAL(109,VýnosyZProdeje[Současné období]),0)","v":0},{"$f":"IFERROR(ObecnéAAdministrativa[[#This Row],[Současné období]]/ObecnéAAdministrativa[[#This Row],[Předchozí období]]-1,0)","v":0},{"$f":"IFERROR(ObecnéAAdministrativa[[#This Row],[Současné období]]/ObecnéAAdministrativa[[#This Row],[Rozpočet]]-1,0)","v":0}]
[null,"Jídlo a zábava",{"$nulls":5},{"$f":"IFERROR(ObecnéAAdministrativa[[#This Row],[Současné období]]/SUBTOTAL(109,VýnosyZProdeje[Současné období]),0)","v":0},{"$f":"IFERROR(ObecnéAAdministrativa[[#This Row],[Současné období]]/ObecnéAAdministrativa[[#This Row],[Předchozí období]]-1,0)","v":0},{"$f":"IFERROR(ObecnéAAdministrativa[[#This Row],[Současné období]]/ObecnéAAdministrativa[[#This Row],[Rozpočet]]-1,0)","v":0}]
[null,"Nájemné",{"$nulls":5},{"$f":"IFERROR(ObecnéAAdministrativa[[#This Row],[Současné období]]/SUBTOTAL(109,VýnosyZProdeje[Současné období]),0)","v":0},{"$f":"IFERROR(ObecnéAAdministrativa[[#This Row],[Současné období]]/ObecnéAAdministrativa[[#This Row],[Předchozí období]]-1,0)","v":0},{"$f":"IFERROR(ObecnéAAdministrativa[[#This Row],[Současné období]]/ObecnéAAdministrativa[[#This Row],[Rozpočet]]-1,0)","v":0}]
[null,"Telefon",{"$nulls":5},{"$f":"IFERROR(ObecnéAAdministrativa[[#This Row],[Současné období]]/SUBTOTAL(109,VýnosyZProdeje[Současné období]),0)","v":0},{"$f":"IFERROR(ObecnéAAdministrativa[[#This Row],[Současné období]]/ObecnéAAdministrativa[[#This Row],[Předchozí období]]-1,0)","v":0},{"$f":"IFERROR(ObecnéAAdministrativa[[#This Row],[Současné období]]/ObecnéAAdministrativa[[#This Row],[Rozpočet]]-1,0)","v":0}]
[null,"Služby",{"$nulls":5},{"$f":"IFERROR(ObecnéAAdministrativa[[#This Row],[Současné období]]/SUBTOTAL(109,VýnosyZProdeje[Současné období]),0)","v":0},{"$f":"IFERROR(ObecnéAAdministrativa[[#This Row],[Současné období]]/ObecnéAAdministrativa[[#This Row],[Předchozí období]]-1,0)","v":0},{"$f":"IFERROR(ObecnéAAdministrativa[[#This Row],[Současné období]]/ObecnéAAdministrativa[[#This Row],[Rozpočet]]-1,0)","v":0}]
[null,"Odpisy",{"$nulls":5},{"$f":"IFERROR(ObecnéAAdministrativa[[#This Row],[Současné období]]/SUBTOTAL(109,VýnosyZProdeje[Současné období]),0)","v":0},{"$f":"IFERROR(ObecnéAAdministrativa[[#This Row],[Současné období]]/ObecnéAAdministrativa[[#This Row],[Předchozí období]]-1,0)","v":0},{"$f":"IFERROR(ObecnéAAdministrativa[[#This Row],[Současné období]]/ObecnéAAdministrativa[[#This Row],[Rozpočet]]-1,0)","v":0}]
[null,"Pojištění",{"$nulls":5},{"$f":"IFERROR(ObecnéAAdministrativa[[#This Row],[Současné období]]/SUBTOTAL(109,VýnosyZProdeje[Současné období]),0)","v":0},{"$f":"IFERROR(ObecnéAAdministrativa[[#This Row],[Současné období]]/ObecnéAAdministrativa[[#This Row],[Předchozí období]]-1,0)","v":0},{"$f":"IFERROR(ObecnéAAdministrativa[[#This Row],[Současné období]]/ObecnéAAdministrativa[[#This Row],[Rozpočet]]-1,0)","v":0}]
[null,"Opravy a údržba",{"$nulls":5},{"$f":"IFERROR(ObecnéAAdministrativa[[#This Row],[Současné období]]/SUBTOTAL(109,VýnosyZProdeje[Současné období]),0)","v":0},{"$f":"IFERROR(ObecnéAAdministrativa[[#This Row],[Současné období]]/ObecnéAAdministrativa[[#This Row],[Předchozí období]]-1,0)","v":0},{"$f":"IFERROR(ObecnéAAdministrativa[[#This Row],[Současné období]]/ObecnéAAdministrativa[[#This Row],[Rozpočet]]-1,0)","v":0}]
[null,"Jiné výdaje (upřesnit)",{"$nulls":5},{"$f":"IFERROR(ObecnéAAdministrativa[[#This Row],[Současné období]]/SUBTOTAL(109,VýnosyZProdeje[Současné období]),0)","v":0},{"$f":"IFERROR(ObecnéAAdministrativa[[#This Row],[Současné období]]/ObecnéAAdministrativa[[#This Row],[Předchozí období]]-1,0)","v":0},{"$f":"IFERROR(ObecnéAAdministrativa[[#This Row],[Současné období]]/ObecnéAAdministrativa[[#This Row],[Rozpočet]]-1,0)","v":0}]
[null,"Celkem",null,{"$f":"SUBTOTAL(109,ObecnéAAdministrativa[Předchozí období])","v":0},{"$f":"SUBTOTAL(109,ObecnéAAdministrativa[Rozpočet])","v":56},{"$f":"SUBTOTAL(109,ObecnéAAdministrativa[Současné období])","v":51},null,{"$f":"IFERROR(ObecnéAAdministrativa[[#Totals],[Současné období]]/SUBTOTAL(109,VýnosyZProdeje[Současné období]),0)","v":{"v":1.1333333333333333,"d":"113.3%"}},{"$f":"IFERROR(ObecnéAAdministrativa[[#Totals],[Současné období]]/ObecnéAAdministrativa[[#Totals],[Předchozí období]]-1,0)","v":0},{"$f":"IFERROR(ObecnéAAdministrativa[[#Totals],[Současné období]]/ObecnéAAdministrativa[[#Totals],[Rozpočet]]-1,0)","v":{"v":-0.0892857142857143,"d":"-8.9%"}}]
[]
[null,"Provozní výdaje: jiné"]
[null,"Jiné provozní výdaje 1",null,null,10,null,null,{"$f":"IFERROR(JinéProvozníVýdajeKategorie[[#This Row],[Současné období]]/SUBTOTAL(109,VýnosyZProdeje[Současné období]),0)","v":0},{"$f":"IFERROR(JinéProvozníVýdajeKategorie[[#This Row],[Současné období]]/JinéProvozníVýdajeKategorie[[#This Row],[Předchozí období]]-1,0)","v":0},{"$f":"IFERROR(JinéProvozníVýdajeKategorie[[#This Row],[Současné období]]/JinéProvozníVýdajeKategorie[[#This Row],[Rozpočet]]-1,0)","v":{"v":-1,"d":"-100.0%"}}]
[null,"Jiné provozní výdaje 2",{"$nulls":5},{"$f":"IFERROR(JinéProvozníVýdajeKategorie[[#This Row],[Současné období]]/SUBTOTAL(109,VýnosyZProdeje[Současné období]),0)","v":0},{"$f":"IFERROR(JinéProvozníVýdajeKategorie[[#This Row],[Současné období]]/JinéProvozníVýdajeKategorie[[#This Row],[Předchozí období]]-1,0)","v":0},{"$f":"IFERROR(JinéProvozníVýdajeKategorie[[#This Row],[Současné období]]/JinéProvozníVýdajeKategorie[[#This Row],[Rozpočet]]-1,0)","v":0}]
[null,"Celkem",null,{"$f":"SUBTOTAL(109,JinéProvozníVýdajeKategorie[Předchozí období])","v":0},{"$f":"SUBTOTAL(109,JinéProvozníVýdajeKategorie[Rozpočet])","v":10},{"$f":"SUBTOTAL(109,JinéProvozníVýdajeKategorie[Současné období])","v":0},null,{"$f":"IFERROR(JinéProvozníVýdajeKategorie[[#Totals],[Současné období]]/SUBTOTAL(109,VýnosyZProdeje[Současné období]),0)","v":0},{"$f":"IFERROR(JinéProvozníVýdajeKategorie[[#Totals],[Současné období]]/JinéProvozníVýdajeKategorie[[#Totals],[Předchozí období]]-1,0)","v":0},{"$f":"IFERROR(JinéProvozníVýdajeKategorie[[#Totals],[Současné období]]/JinéProvozníVýdajeKategorie[[#Totals],[Rozpočet]]-1,0)","v":{"v":-1,"d":"-100.0%"}}]
[]
[null,"Celkové provozní výdaje",null,{"$f":"SUM(ProdejAMarketing[Předchozí období],ObecnéAAdministrativa[Předchozí období],JinéProvozníVýdajeKategorie[Předchozí období])","v":0},{"$f":"SUM(ProdejAMarketing[Rozpočet],ObecnéAAdministrativa[Rozpočet],JinéProvozníVýdajeKategorie[Rozpočet])","v":88},{"$f":"SUM(ProdejAMarketing[Současné období],ObecnéAAdministrativa[Současné období],JinéProvozníVýdajeKategorie[Současné období])","v":70},null,{"$f":"IFERROR(F45/SUBTOTAL(109,VýnosyZProdeje[Současné období]),0)","v":{"v":1.5555555555555556,"d":"155.6%"}},{"$f":"IFERROR(F45/D45-1,0)","v":0},{"$f":"IFERROR(F45/E45-1,0)","v":{"v":-0.20454545454545459,"d":"-20.5%"}}]
[]
[null,"Výsledek hospodaření",null,{"$f":"D18-D45","v":40},{"$f":"E18-E45","v":-45},{"$f":"F18-F45","v":-32},null,{"$f":"IFERROR(F47/SUBTOTAL(109,VýnosyZProdeje[Současné období]),0)","v":{"v":-0.7111111111111111,"d":"-71.1%"}},{"$f":"IFERROR(IF(D47=F47,0,IF(F47>D47,ABS((F47/D47)-1),IF(AND(F47<D47,D47<0),-((F47/D47)-1),(F47/D47)-1))),0)","v":{"v":-1.8,"d":"-180.0%"}},{"$f":"IFERROR(IF(E47=F47,0,IF(F47>E47,ABS((F47/E47)-1),IF(AND(F47<E47,E47<0),-((F47/E47)-1),(F47/E47)-1))),0)","v":{"v":0.28888888888888886,"d":"28.9%"}}]
[]
[null,"Jiné příjmy",{"$nulls":5},{"$f":"IFERROR(F49/SUBTOTAL(109,VýnosyZProdeje[Současné období]),0)","v":0},{"$f":"IFERROR(F49/D49-1,0)","v":0},{"$f":"IFERROR(F49/E49-1,0)","v":0}]
[]
[null,"Daně"]
[null,"Daně z příjmu",null,null,32,30,null,{"$f":"IFERROR(Daně[[#This Row],[Současné období]]/SUBTOTAL(109,VýnosyZProdeje[Současné období]),0)","v":{"v":0.6666666666666666,"d":"66.7%"}},{"$f":"IFERROR(Daně[[#This Row],[Současné období]]/Daně[[#This Row],[Současné období]]-1,0)","v":0},{"$f":"IFERROR(Daně[[#This Row],[Současné období]]/Daně[[#This Row],[Rozpočet]]-1,0)","v":{"v":-0.0625,"d":"-6.3%"}}]
[null,"Daně ze mzdy",{"$nulls":5},{"$f":"IFERROR(Daně[[#This Row],[Současné období]]/SUBTOTAL(109,VýnosyZProdeje[Současné období]),0)","v":0},{"$f":"IFERROR(Daně[[#This Row],[Současné období]]/Daně[[#This Row],[Současné období]]-1,0)","v":0},{"$f":"IFERROR(Daně[[#This Row],[Současné období]]/Daně[[#This Row],[Rozpočet]]-1,0)","v":0}]
[null,"Daně z nemovitosti",{"$nulls":5},{"$f":"IFERROR(Daně[[#This Row],[Současné období]]/SUBTOTAL(109,VýnosyZProdeje[Současné období]),0)","v":0},{"$f":"IFERROR(Daně[[#This Row],[Současné období]]/Daně[[#This Row],[Současné období]]-1,0)","v":0},{"$f":"IFERROR(Daně[[#This Row],[Současné období]]/Daně[[#This Row],[Rozpočet]]-1,0)","v":0}]
[null,"Jiné daně (upřesnit)",{"$nulls":5},{"$f":"IFERROR(Daně[[#This Row],[Současné období]]/SUBTOTAL(109,VýnosyZProdeje[Současné období]),0)","v":0},{"$f":"IFERROR(Daně[[#This Row],[Současné období]]/Daně[[#This Row],[Současné období]]-1,0)","v":0},{"$f":"IFERROR(Daně[[#This Row],[Současné období]]/Daně[[#This Row],[Rozpočet]]-1,0)","v":0}]
[null,"Celkem",null,{"$f":"SUBTOTAL(109,Daně[Předchozí období])","v":0},{"$f":"SUBTOTAL(109,Daně[Rozpočet])","v":32},{"$f":"SUBTOTAL(109,Daně[Současné období])","v":30},null,{"$f":"IFERROR(Daně[[#Totals],[Současné období]]/SUBTOTAL(109,VýnosyZProdeje[Současné období]),0)","v":{"v":0.6666666666666666,"d":"66.7%"}},{"$f":"IFERROR(Daně[[#Totals],[Současné období]]/Daně[[#Totals],[Současné období]]-1,0)","v":0},{"$f":"IFERROR(Daně[[#Totals],[Současné období]]/Daně[[#Totals],[Rozpočet]]-1,0)","v":{"v":-0.0625,"d":"-6.3%"}}]
[]
[null,"Čistý zisk",null,{"$f":"D47+D49-Daně[[#Totals],[Předchozí období]]","v":40},{"$f":"E47+E49-Daně[[#Totals],[Předchozí období]]","v":-45},{"$f":"F47+F49-Daně[[#Totals],[Předchozí období]]","v":-32},null,{"$f":"IFERROR(F58/SUBTOTAL(109,VýnosyZProdeje[Současné období]),0)","v":{"v":-0.7111111111111111,"d":"-71.1%"}},{"$f":"IFERROR(IF(D58=F58,0,IF(F58>D58,ABS((F58/D58)-1),IF(AND(F58<D58,D58<0),-((F58/D58)-1),(F58/D58)-1))),0)","v":{"v":-1.8,"d":"-180.0%"}},{"$f":"IFERROR(IF(E58=F58,0,IF(F58>E58,ABS((F58/E58)-1),IF(AND(F58<E58,E58<0),-((F58/E58)-1),(F58/E58)-1))),0)","v":{"v":0.28888888888888886,"d":"28.9%"}}]
[null,"Hrubá marže",null,{"$f":"D18/SUM(VýnosyZProdeje[Předchozí období])","v":{"v":1,"d":"100.0%"}},{"$f":"E18/SUM(VýnosyZProdeje[Rozpočet])","v":{"v":0.86,"d":"86.0%"}},{"$f":"F18/SUM(VýnosyZProdeje[Současné období])","v":{"v":0.8444444444444444,"d":"84.4%"}}]
[null,"Provozní zisková marže",null,{"$f":"D58/SUM(VýnosyZProdeje[Předchozí období])","v":{"v":1,"d":"100.0%"}},{"$f":"E58/SUM(VýnosyZProdeje[Rozpočet])","v":{"v":-0.9,"d":"-90.0%"}},{"$f":"F58/SUM(VýnosyZProdeje[Současné období])","v":{"v":-0.7111111111111111,"d":"-71.1%"}}]